bitfinex-derivatives/quotes_SOLF0:USTF0_20241011
["timestamp","ask_amount","ask_price","bid_price","bid_amount"]
[1728650326110,3.5081,142.61,142.58,3.5086]
[1728650328205,20.2978,142.62,142.59,3.5083]
[1728650329902,16.79,142.62,142.59,3.5083]
[1728650330102,16.79,142.62,142.55,0.12502]
[1728650330103,3.508,142.61,142.58,3.5085]
[1728650330306,16.79,142.6,142.58,3.5085]
[1728650333010,20.2982,142.6,142.57,3.5088]
[1728650333210,20.2982,142.6,142.55,0.12502]
[1728650333706,16.79,142.6,142.57,3.5087]
[1728650334505,16.79,142.6,142.58,3.5085]
[1728650335614,16.79,142.6,142.56,3.509]
[1728650338823,16.79,142.6,142.57,3.5089]
[1728650342127,16.79,142.6,142.56,3.5092]
[1728650343226,16.79,142.6,142.57,3.5089]
[1728650344530,10.78,142.59,142.57,3.5089]
[1728650345130,10.78,142.58,142.55,0.12502]
[1728650345328,9.6881,142.61,142.56,3.5091]
[1728650345630,10.78,142.57,142.55,0.12502]
[1728650345831,10.78,142.57,142.55,3.63442]
[1728650346030,10.78,142.57,142.55,0.12502]
[1728650346627,6.18,142.61,142.55,0.12502]
[1728650346826,10.78,142.59,142.55,0.12502]
[1728650347125,2.6165,142.63,142.55,0.12502]
[1728650347320,16.76,142.62,142.58,10.78]
[1728650347530,10.78,142.62,142.59,3.5082]
[1728650348429,16.84,142.63,142.59,3.5082]
[1728650350029,16.84,142.63,142.6,3.5082]
[1728650350432,16.84,142.63,142.55,6.10502]
[1728650350433,22.82,142.65,142.56,16.84]
[1728650350635,16.84,142.65,142.62,3.5077]
[1728650351034,16.84,142.64,142.59,3.5084]
[1728650351237,16.84,142.62,142.59,3.5084]
[1728650351532,16.84,142.62,142.55,6.10502]
[1728650351533,20.3478,142.62,142.56,5.98]
[1728650352537,20.3478,142.62,142.57,3.5089]
[1728650353827,20.3478,142.62,142.56,9.4891]
[1728650354537,20.3478,142.62,142.57,3.5088]
[1728650357629,16.84,142.62,142.55,0.12502]
[1728650357828,16.84,142.58,142.55,0.12502]
[1728650358540,16.84,142.57,142.55,0.12502]
[1728650359040,9.4885,142.59,142.55,0.12502]
[1728650359239,16.84,142.57,142.55,0.12502]
[1728650363441,16.84,142.58,142.55,3.63442]
[1728650363641,5.98,142.59,142.55,0.12502]
[1728650364045,5.98,142.59,142.56,3.5091]
[1728650370556,10.78,142.57,142.56,3.5091]
[1728650373452,10.78,142.57,142.55,3.63432]
[1728650373853,10.78,142.56,142.55,3.63432]
[1728650376556,10.78,142.57,142.56,3.5091]
[1728650376850,16.76,142.59,142.55,0.12502]
[1728650377054,10.78,142.59,142.55,0.12502]
[1728650377249,10.78,142.59,142.58,3.5087]
[1728650378250,10.78,142.59,142.57,3.5088]
[1728650379160,10.78,142.58,142.57,3.5088]
[1728650387867,10.78,142.58,142.55,0.12502]
[1728650388066,10.78,142.58,142.56,3.509]
[1728650391769,10.78,142.58,142.55,3.63432]
[1728650391969,10.78,142.56,142.55,3.63432]
[1728650393262,10.78,142.56,142.55,0.12502]
[1728650393667,14.2893,142.56,142.52,3.51]
[1728650393862,10.78,142.53,142.52,3.51]
[1728650394468,10.78,142.54,142.53,3.5099]
[1728650395664,3.5093,142.56,142.53,3.5099]
[1728650395972,10.78,142.54,142.53,3.5099]
[1728650401969,4.2059,142.57,142.5,10.78]
[1728650402164,4.2059,142.57,142.55,3.5093]
[1728650402477,10.78,142.56,142.55,3.5093]
[1728650403170,10.78,142.56,142.49,6.28502]
[1728650403369,4.2059,142.57,142.53,3.5098]
[1728650403565,4.2059,142.57,142.49,0.12502]
[1728650403766,4.2059,142.57,142.49,3.63592]
[1728650403767,10.78,142.5,142.49,3.63592]
[1728650405173,10.78,142.5,142.45,3.5117]
[1728650405376,10.78,142.46,142.45,3.5117]
[1728650405579,10.78,142.46,142.44,0.12518]
[1728650405875,10.78,142.45,142.44,3.63708]
[1728650406377,10.78,142.45,142.44,0.12518]
[1728650407481,10.78,142.45,142.43,0.12502]
[1728650407665,10.78,142.44,142.43,0.12502]
[1728650409076,3.5126,142.42,142.37,0.12502]
[1728650409269,10.78,142.38,142.37,0.12502]
[1728650409473,6.16,142.42,142.37,0.12502]
[1728650409675,10.78,142.38,142.37,0.12502]
[1728650410674,10.78,142.34,142.32,1.3438]
[1728650411075,10.78,142.33,142.31,0.12502]
[1728650411374,2.84412,142.43,142.31,10.90502]
[1728650411567,10.78,142.33,142.31,0.12502]
[1728650412273,10.78,142.33,142.32,3.5149]
[1728650412473,16.86,142.34,142.31,0.12502]
[1728650412678,16.86,142.33,142.31,0.12502]
[1728650413183,23.02,142.33,142.27,1.3274]
[1728650413378,16.86,142.3,142.27,3.5162]
[1728650413871,16.86,142.3,142.26,1.3255]
[1728650414277,16.86,142.32,142.26,1.3255]
[1728650414880,16.86,142.32,142.28,3.5159]
[1728650415879,16.86,142.32,142.29,3.5157]
[1728650416274,16.86,142.32,142.26,1.3255]
[1728650416476,16.86,142.3,142.26,1.3255]
[1728650417081,16.86,142.3,142.28,3.5159]
[1728650417284,16.86,142.3,142.26,1.3255]
[1728650417683,16.86,142.3,142.28,3.5161]
[1728650418274,16.86,142.3,142.26,1.3255]
[1728650418679,16.86,142.3,142.27,3.5163]
[1728650418876,16.86,142.3,142.25,0.12502]
[1728650419274,16.86,142.3,142.26,3.5164]
[1728650419480,16.86,142.28,142.25,0.12502]
[1728650419676,16.86,142.27,142.25,0.12502]
[1728650419875,16.86,142.27,142.25,3.64162]
[1728650420178,16.86,142.27,142.25,0.12502]
[1728650420782,16.86,142.26,142.22,6.16]
[1728650420978,7.56362411,142.36,142.22,6.16]
[1728650421176,16.86,142.23,142.22,6.16]
[1728650421381,16.86,142.23,142.19,3.64312]
[1728650421582,16.86,142.21,142.19,3.64312]
[1728650422483,3.5169,142.25,142.2,3.5181]
[1728650422684,16.86,142.23,142.19,0.12502]
[1728650423793,16.86,142.23,142.21,3.5176]
[1728650424282,16.86,142.22,142.19,0.12502]
[1728650424890,16.86,142.22,142.2,3.518]
[1728650425076,16.86,142.23,142.19,0.12502]
[1728650425390,2.7477,142.27,142.19,0.12502]
[1728650425591,16.86,142.25,142.19,0.12502]
[1728650425986,16.86,142.27,142.24,3.5167]
[1728650426191,16.86,142.27,142.2,1.3878]
[1728650426492,16.86,142.27,142.24,3.5166]
[1728650427384,16.86,142.27,142.22,3.5172]
[1728650427591,16.86,142.27,142.2,1.3878]
[1728650428086,16.86,142.27,142.25,3.5163]
[1728650428588,16.86,142.29,142.2,1.3878]
[1728650428787,16.86,142.27,142.21,1.4154]
[1728650429088,16.86,142.27,142.25,3.5163]
[1728650430689,16.86,142.27,142.26,3.5162]
[1728650432094,16.86,142.29,142.21,1.4154]
[1728650432290,16.86,142.29,142.27,3.5158]
[1728650432496,16.86,142.29,142.22,16.86]
[1728650432883,16.86,142.29,142.28,3.5157]
[1728650433491,16.98502,142.31,142.22,16.86]
[1728650434695,16.98502,142.31,142.28,3.5156]
[1728650434898,16.98502,142.31,142.22,16.86]
[1728650435087,0.12502,142.31,142.25,16.86]
[1728650435283,16.86,142.3,142.21,19.6088]
[1728650435484,20.3754,142.3,142.21,19.6088]
[1728650435685,0.12502,142.31,142.28,3.5156]
[1728650437091,0.12502,142.31,142.22,16.86]
[1728650437893,0.12502,142.31,142.28,3.5156]
[1728650438093,0.12502,142.31,142.23,6.24]
[1728650438094,16.86,142.29,142.23,6.24]
[1728650438497,16.86,142.29,142.26,3.5161]
[1728650438997,16.86,142.29,142.25,3.5163]
[1728650439195,16.86,142.27,142.25,3.5163]
[1728650439797,16.86,142.27,142.22,6.24]
[1728650440094,16.86,142.27,142.26,3.5162]
[1728650441300,16.86,142.27,142.25,3.5163]
[1728650442500,16.86,142.29,142.26,3.5162]
[1728650442698,16.86,142.29,142.22,6.24]
[1728650443206,16.86,142.29,142.28,3.5157]
[1728650444996,16.86,142.29,142.24,6.24]
[1728650445198,16.86,142.29,142.26,3.5161]
[1728650445901,20.3757,142.29,142.26,3.5161]
[1728650448000,13.3777,142.29,142.26,3.5161]
[1728650450501,10.8,142.27,142.26,3.5161]
[1728650451210,10.8,142.28,142.25,3.5164]
[1728650451416,10.8,142.28,142.24,10.8]
[1728650451903,10.8,142.28,142.27,3.516]
[1728650452404,16.87,142.3,142.27,3.516]
[1728650453207,16.87,142.3,142.25,3.5164]
[1728650453408,16.87,142.3,142.23,6.24]
[1728650454208,3.5156,142.29,142.25,3.5164]
[1728650454407,16.87,142.26,142.19,0.12502]
[1728650454611,16.87,142.24,142.19,0.12502]
[1728650455416,27.1091,142.28,142.19,0.12502]
[1728650455417,16.87,142.22,142.19,0.12502]
[1728650455806,20.3874,142.22,142.19,0.12502]
[1728650456304,3.5174,142.22,142.19,0.12502]
[1728650456501,16.87,142.21,142.19,0.12502]
[1728650457828,16.87,142.2,142.19,0.12502]
[1728650458915,20.3877,142.2,142.19,0.12502]
[1728650459908,16.87,142.2,142.15,3.5189]
[1728650460214,16.87,142.2,142.13,6.12502]
[1728650461212,16.87,142.2,142.15,3.5189]
[1728650461409,16.87,142.2,142.13,6.12502]
[1728650461613,20.3877,142.2,142.13,6.12502]
[1728650461810,20.3877,142.2,142.16,3.5186]
[1728650464008,16.87,142.18,142.13,0.12502]
[1728650464214,16.87,142.16,142.13,0.12502]
[1728650464621,16.87,142.15,142.13,0.12502]
[1728650466825,16.87,142.16,142.13,0.12502]
[1728650467022,16.87,142.2,142.13,0.12502]
[1728650467023,6.0,142.2,142.13,0.12502]
[1728650467621,16.87,142.19,142.13,0.12502]
[1728650467817,16.87,142.19,142.16,3.5185]
[1728650468325,16.87,142.19,142.13,0.12502]
[1728650468623,16.87,142.19,142.17,3.5184]
[1728650469719,6.0,142.2,142.13,0.12502]
[1728650470024,6.0,142.2,142.13,1.41882]
[1728650470226,16.87,142.21,142.2,3.5177]
[1728650470422,16.87,142.21,142.13,1.41882]
[1728650470624,4.0332,142.24,142.16,16.87]
[1728650470927,16.99502,142.25,142.23,3.517]
[1728650471117,16.99502,142.25,142.17,22.87]
[1728650471518,16.99502,142.25,142.24,3.5167]
[1728650471715,16.99502,142.25,142.18,1.3674]
[1728650472424,16.99502,142.25,142.22,3.5171]
[1728650472923,16.99502,142.25,142.23,3.5169]
[1728650473116,16.99502,142.25,142.18,1.3674]
[1728650474125,0.12502,142.25,142.18,1.3674]
[1728650474323,0.12502,142.25,142.24,3.5167]
[1728650478627,0.12502,142.25,142.21,6.0]
[1728650480426,0.12502,142.25,142.24,3.5167]
[1728650485828,16.99502,142.25,142.19,2.7243]
[1728650486025,16.99502,142.25,142.23,3.5168]
[1728650486230,16.99502,142.25,142.18,1.3674]
[1728650486438,16.87,142.23,142.18,7.3674]
[1728650486636,16.87,142.23,142.21,3.5174]
[1728650487037,20.3869,142.24,142.18,1.3674]
[1728650487332,3.5171,142.23,142.15,2.8023]
[1728650487532,16.87,142.22,142.16,6.0]
[1728650487841,20.3872,142.22,142.17,3.5183]
[1728650488130,16.87,142.22,142.16,6.0]
[1728650488533,16.87,142.22,142.2,3.5176]
[1728650489340,20.3874,142.22,142.19,3.5179]
[1728650490027,20.3874,142.22,142.16,6.0]
[1728650490843,16.87,142.22,142.2,3.5177]
[1728650491033,4.0666,142.24,142.16,6.0]
[1728650491034,19.6311,142.24,142.16,6.0]
[1728650491236,0.12502,142.25,142.18,16.87]
[1728650491535,0.12502,142.25,142.23,3.5168]
[1728650492342,16.87,142.24,142.21,3.5172]
[1728650492846,16.87,142.24,142.16,6.0]
[1728650493038,16.87,142.24,142.22,3.5171]
[1728650494741,16.87,142.24,142.16,6.0]
[1728650495042,16.87,142.24,142.22,3.517]
[1728650496138,0.12502,142.25,142.24,3.5167]
[1728650497949,0.12502,142.25,142.23,3.5169]
[1728650498245,16.87,142.24,142.16,6.0]
[1728650498450,20.3868,142.24,142.16,6.0]
[1728650499049,16.87,142.24,142.16,22.87]
[1728650499243,20.51152,142.25,142.16,22.87]
[1728650499546,16.99502,142.25,142.16,22.87]
[1728650499847,16.99502,142.25,142.22,3.5171]
[1728650500046,16.99502,142.25,142.16,22.87]
[1728650500448,16.99502,142.25,142.23,3.5168]
[1728650501540,16.99502,142.25,142.2,5.92]
[1728650502351,3.5167,142.24,142.21,3.5173]
[1728650502547,3.5167,142.24,142.2,5.92]
[1728650503046,20.51152,142.25,142.2,5.92]
[1728650503648,20.51152,142.25,142.22,3.517]
[1728650506147,20.51152,142.25,142.23,3.5169]
[1728650506349,16.99502,142.25,142.2,5.92]
[1728650506850,16.99502,142.25,142.24,3.5167]
[1728650507851,16.99502,142.25,142.23,3.5169]
[1728650509143,20.51152,142.25,142.23,3.5169]
[1728650509339,20.51152,142.25,142.22,3.5171]
[1728650509754,16.99502,142.25,142.2,5.92]
[1728650510051,16.99502,142.25,142.23,3.5168]
[1728650510354,20.51162,142.25,142.22,3.517]
[1728650510753,20.51162,142.25,142.2,5.92]
[1728650511848,20.51162,142.25,142.23,3.5168]
[1728650512548,10.81,142.24,142.23,3.5168]
[1728650515554,10.81,142.24,142.2,5.92]
[1728650515750,14.3268,142.24,142.22,3.5171]
[1728650516345,10.81,142.24,142.23,3.517]
[1728650517552,10.93502,142.25,142.24,3.5167]
[1728650518149,14.45152,142.25,142.23,3.5169]
[1728650519448,10.81,142.24,142.23,3.5169]
[1728650521152,10.81,142.24,142.2,5.92]
[1728650521652,10.81,142.22,142.2,5.92]
[1728650522160,10.81,142.21,142.15,13.6123]
[1728650522458,10.81,142.19,142.15,19.4723]
[1728650522652,10.81,142.2,142.19,3.5177]
[1728650523664,3.5187,142.16,142.13,0.12502]
[1728650523852,10.81,142.14,142.13,0.12502]
[1728650524550,4.1476,142.23,142.13,0.12502]
[1728650524747,20.4081,142.19,142.15,3.5188]
[1728650525556,16.89,142.19,142.13,0.12502]
[1728650525759,5.86,142.21,142.13,5.98502]
[1728650526150,9.3776,142.21,142.17,3.5183]
[1728650526960,3.5177,142.2,142.17,3.5183]
[1728650527265,20.4077,142.2,142.17,3.5183]
[1728650527654,4.1476,142.23,142.13,5.98502]
[1728650527857,16.89,142.23,142.14,19.6604]
[1728650528050,0.12502,142.25,142.16,16.89]
[1728650528051,22.87502,142.25,142.16,16.89]
[1728650528254,22.87502,142.25,142.17,5.86]
[1728650529162,0.12502,142.25,142.18,16.89]
[1728650529355,0.12502,142.25,142.18,18.2832]
[1728650529762,0.12502,142.25,142.23,3.5168]
[1728650531352,0.12502,142.25,142.2,5.86]
[1728650531658,0.12502,142.25,142.24,3.5167]
[1728650541175,3.5154,142.3,142.27,3.5159]
[1728650541472,0.12502,142.31,142.24,22.75]
[1728650541866,0.12502,142.31,142.28,3.5156]
[1728650543073,3.64012,142.31,142.28,3.5156]
[1728650544078,0.12502,142.31,142.24,10.7119912]
[1728650544278,0.12502,142.31,142.3,3.5152]
[1728650547085,0.12502,142.31,142.28,5.86]
[1728650548092,0.12502,142.31,142.27,5.86]
[1728650548592,3.64002,142.31,142.28,3.5155]
[1728650548796,0.12502,142.31,142.27,5.86]
[1728650550389,0.12502,142.31,142.3,3.5152]
[1728650557593,0.12502,142.31,142.3,20.4052]
[1728650557998,0.12502,142.31,142.3,3.5152]
[1728650559807,0.12502,142.31,142.3,9.3352]
[1728650560900,0.12502,142.31,142.3,20.1352]
[1728650561101,120.87876658,142.48,142.31,0.12502]
[1728650561411,10.8,142.46,142.41,10.8]
[1728650561612,10.8,142.46,142.32,75.92]
[1728650561613,13.5343,142.47,142.42,14.3123]
[1728650561803,1.3156,142.47,142.42,14.3123]
[1728650562199,122.28976658,142.48,142.42,14.3123]
[1728650562200,10.8,142.48,142.42,3.5123]
[1728650562500,10.8,142.47,142.42,14.3123]
[1728650563107,2.7266,142.5,142.42,14.3123]
[1728650563302,10.8,142.48,142.42,14.3123]
[1728650564611,3.63572,142.49,142.42,3.5123]
[1728650564806,0.12502,142.49,142.42,3.5123]
[1728650566202,0.12502,142.49,142.41,22.67]
[1728650566404,0.12502,142.49,142.47,3.5109]
[1728650566606,0.12502,142.49,142.46,16.85]
[1728650566906,16.97502,142.55,142.48,16.85]
[1728650566907,0.12502,142.55,142.48,16.85]
[1728650567103,0.12502,142.55,142.53,16.85]
[1728650567298,0.12502,142.55,142.54,3.5093]
[1728650567597,0.12502,142.55,142.52,5.82]
[1728650568413,0.12502,142.55,142.53,3.5095]
[1728650569301,0.12502,142.55,142.54,3.5093]
[1728650571612,0.12502,142.55,142.54,20.3593]
[1728650574108,0.12502,142.55,142.53,5.8]
[1728650574407,0.12502,142.55,142.52,22.65]
[1728650574614,0.12502,142.55,142.54,16.85]
[1728650574810,0.12502,142.55,142.54,20.3593]
[1728650576811,0.12502,142.55,142.52,5.8]
[1728650576812,0.12502,142.55,142.53,3.5094]
[1728650577020,0.12502,142.55,142.52,22.65]
[1728650578811,0.12502,142.55,142.52,16.85]
[1728650579015,0.12502,142.55,142.5,22.65]
[1728650579210,0.12502,142.61,142.54,16.85]
[1728650579411,16.85,142.75,142.6,33.7]
[1728650579715,16.85,142.75,142.66,16.85]
[1728650579716,1.404,142.72,142.66,16.85]
[1728650580315,2.7112,142.75,142.7,16.85]
[1728650580516,2.7112,142.75,142.68,16.85]
[1728650580517,1.404,142.78,142.72,16.85]
[1728650580718,1.404,142.78,142.72,20.3549]
[1728650580917,1.404,142.78,142.72,3.5049]
[1728650581120,16.85,142.75,142.65,9.7265]
[1728650581323,6.22,142.77,142.71,16.85]
[1728650582310,6.22,142.77,142.72,3.5049]
[1728650582521,6.22,142.77,142.72,30.4249]
[1728650582720,6.22,142.77,142.72,26.92]
[1728650582919,6.22,142.77,142.74,3.5042]
[1728650583112,6.22,142.77,142.69,33.14]
[1728650583514,6.22,142.77,142.73,3.5045]
[1728650583718,6.22,142.77,142.69,6.22]
[1728650584115,1.404,142.78,142.69,33.14]
[1728650584319,0.12502,142.79,142.72,26.92]
[1728650584624,0.12502,142.79,142.78,3.5034]
[1728650585019,0.12502,142.79,142.73,6.58]
[1728650585225,0.12502,142.79,142.78,3.5034]
[1728650589629,6.70502,142.85,142.77,33.5]
[1728650589932,6.70502,142.85,142.77,6.58]
[1728650590622,0.12502,142.85,142.77,6.58]
[1728650591034,0.12502,142.85,142.82,3.5023]
[1728650591329,0.12502,142.85,142.77,6.58]
[1728650591931,27.04502,142.85,142.77,6.58]
[1728650592227,0.12502,142.85,142.77,6.58]
[1728650593532,26.92,142.83,142.73,6.70502]
[1728650593923,26.92,142.8,142.73,0.12502]
[1728650594125,30.4231,142.8,142.73,0.12502]
[1728650594431,30.4231,142.8,142.76,3.5039]
[1728650594432,1.3565,142.79,142.76,3.5039]
[1728650594828,1.3565,142.79,142.73,0.12502]
[1728650595022,1.3565,142.79,142.77,3.5034]
[1728650595930,28.2765,142.79,142.73,0.12502]
[1728650596534,28.2765,142.79,142.77,3.5037]
[1728650596829,28.2765,142.79,142.73,0.12502]
[1728650597029,6.58,142.78,142.73,0.12502]
[1728650598429,6.58,142.78,142.75,3.504]
[1728650599027,6.58,142.78,142.73,0.12502]
[1728650599028,3.5038,142.77,142.73,3.62962]
[1728650599533,26.92,142.77,142.73,3.62962]
[1728650599835,6.58,142.78,142.73,3.62962]
[1728650600032,6.58,142.78,142.73,0.12502]
[1728650600333,30.4244,142.75,142.7,3.5052]
[1728650600532,7.9614,142.74,142.7,3.5052]
[1728650600922,7.9614,142.74,142.71,3.5051]
[1728650601122,7.9614,142.74,142.65,6.58]
[1728650601324,7.9614,142.74,142.66,26.92]
[1728650601537,7.9614,142.74,142.72,3.5047]
[1728650602823,7.9614,142.74,142.71,3.5051]
[1728650604533,7.9614,142.74,142.72,3.5049]
[1728650606239,7.9614,142.74,142.65,6.58]
[1728650606541,24.7814,142.74,142.65,23.4]
[1728650606835,24.7814,142.74,142.65,16.82]
[1728650607141,28.2859,142.74,142.7,3.5052]
[1728650607835,28.2859,142.74,142.65,16.82]
[1728650608035,28.2859,142.74,142.71,3.5051]
[1728650609832,16.82,142.72,142.64,2.7354]
[1728650610235,16.82,142.7,142.61,23.52502]
[1728650610439,26.9055,142.7,142.67,3.63102]
[1728650611734,3.5058,142.69,142.67,0.12502]
[1728650612242,3.5059,142.68,142.67,0.12502]
[1728650612540,20.3259,142.68,142.67,0.12502]
[1728650613536,3.5066,142.65,142.61,0.12502]
[1728650613837,3.5066,142.65,142.62,3.5072]
[1728650614943,3.5066,142.65,142.63,3.5071]
[1728650616845,10.0465,142.66,142.63,3.5071]
[1728650617337,10.0465,142.66,142.61,0.12502]
[1728650617338,6.54,142.66,142.61,0.12502]
[1728650617534,3.5066,142.65,142.62,3.5072]
[1728650619246,6.56,142.67,142.61,0.12502]
[1728650619740,10.0662,142.67,142.61,0.12502]
[1728650621037,3.5062,142.67,142.61,0.12502]
[1728650621240,10.0662,142.67,142.61,0.12502]
[1728650622241,26.8862,142.67,142.64,3.5067]
[1728650624040,16.82,142.65,142.61,0.12502]
[1728650625838,20.3267,142.65,142.62,3.5073]
[1728650626938,3.507,142.64,142.62,3.5073]
[1728650629349,3.507,142.64,142.61,3.63252]
[1728650629852,6.56,142.63,142.61,3.63252]
[1728650630753,6.56,142.63,142.62,3.5073]
[1728650631350,3.507,142.64,142.62,3.5073]
[1728650631548,1.4285,142.66,142.61,0.12502]
[1728650631747,3.57246266,142.7,142.61,0.12502]
[1728650631946,16.82,142.67,142.61,0.12502]
[1728650632448,3.46934399,142.68,142.61,0.12502]
[1728650632449,16.82,142.65,142.61,0.12502]
[1728650632646,23.38,142.65,142.61,0.12502]
[1728650633344,3.507,142.64,142.62,3.5072]
[1728650633541,23.38,142.65,142.62,3.5072]
[1728650634454,26.8867,142.65,142.62,3.5072]
[1728650634749,6.56,142.65,142.62,3.5072]
[1728650635750,10.0668,142.65,142.62,3.5072]
[1728650636150,23.38,142.65,142.61,0.12502]
[1728650636349,3.5072,142.63,142.61,0.12502]
[1728650636946,3.5073,142.62,142.55,0.12502]
[1728650637149,3.45706871,142.67,142.55,0.12502]
[1728650637150,16.82,142.6,142.55,0.12502]
[1728650637353,23.38,142.6,142.55,0.12502]
[1728650637554,3.5082,142.59,142.56,3.5087]
[1728650637954,23.38,142.6,142.55,0.12502]
[1728650638155,20.3285,142.58,142.55,3.63402]
[1728650639156,16.82,142.58,142.55,0.12502]
[1728650640555,16.82,142.56,142.55,0.12502]
[1728650640949,20.3288,142.56,142.55,0.12502]
[1728650641762,26.8888,142.56,142.55,0.12502]
[1728650642356,26.8888,142.56,142.55,1e-08]
[1728650643352,23.38,142.56,142.49,0.12502]
[1728650643558,3.5099,142.52,142.49,3.63542]
[1728650644255,16.82,142.53,142.49,0.12502]
[1728650644557,16.82,142.51,142.49,0.12502]
[1728650644760,23.2,142.51,142.49,0.12502]
[1728650646154,3.5103,142.5,142.49,0.12502]
[1728650646762,6.38,142.51,142.49,0.12502]
[1728650647349,9.8901,142.51,142.49,0.12502]
[1728650651268,9.8901,142.51,142.43,3.63682]
[1728650651269,3.5113,142.47,142.43,3.63682]
[1728650651571,16.82,142.46,142.43,0.12502]
[1728650652265,16.82,142.46,142.44,3.5116]
[1728650653866,6.4,142.47,142.45,3.5115]
[1728650654264,6.4,142.47,142.43,0.12502]
[1728650654562,9.9111,142.47,142.44,3.5116]
[1728650655356,16.82,142.48,142.43,0.12502]
[1728650655761,6.4,142.49,142.43,0.12502]
[1728650656157,9.9107,142.49,142.45,3.5113]
[1728650656469,9.9107,142.49,142.43,0.12502]
[1728650656664,9.9107,142.49,142.45,3.5114]
[1728650656970,20.3309,142.48,142.45,3.5114]
[1728650657263,16.82,142.48,142.44,3.5116]
[1728650657465,3.5111,142.47,142.44,3.5116]
[1728650657672,16.82,142.48,142.43,0.12502]
[1728650658355,20.3309,142.48,142.45,3.5115]
[1728650660763,20.3309,142.48,142.43,0.12502]
[1728650660962,20.3309,142.48,142.46,3.5113]
[1728650661366,81.99411681,142.54,142.43,0.12502]
[1728650661571,23.22,142.51,142.43,0.12502]
[1728650661959,3.5105,142.5,142.43,0.12502]
[1728650662466,3.5105,142.5,142.47,3.5109]
[1728650664070,6.4,142.53,142.44,16.82]
[1728650664268,23.22,142.53,142.44,16.82]
[1728650664569,3.51,142.52,142.48,3.5106]
[1728650665268,3.5101,142.51,142.48,3.5106]
[1728650665770,6.4,142.53,142.44,16.82]
[1728650666073,3.5098,142.52,142.44,16.82]
[1728650666264,23.22,142.53,142.44,16.82]
[1728650666663,3.5101,142.51,142.49,3.5105]
[1728650667166,3.5101,142.51,142.44,16.82]
[1728650667167,3.5101,142.51,142.48,3.5107]
[1728650669164,16.82,142.51,142.46,3.511]
[1728650670072,3.5107,142.49,142.46,3.511]
[1728650670274,3.5107,142.49,142.47,3.511]
[1728650670568,20.3298,142.52,142.43,0.12502]
[1728650670776,0.12502,142.55,142.48,16.82]
[1728650670971,0.12502,142.55,142.49,4.0167]
[1728650671172,3.63422,142.55,142.49,4.0167]
[1728650671365,0.12502,142.55,142.52,3.5097]
[1728650671767,3.63422,142.55,142.52,3.5097]
[1728650672968,3.63422,142.55,142.53,3.5095]
[1728650673163,3.63422,142.55,142.49,4.0167]
[1728650673573,3.63422,142.55,142.52,3.5097]